Cogmind - Beta 17 @@@ ROGUE MODE // 2026.07.15 @ 17:28:19 Player: Artackni Result: Escaped! Performance ------------- Evolutions (9) 4500 Regions Visited (24) 4800 Robots Destroyed (450) 2250 Value Destroyed (19848) 19848 Prototype IDs (28) 560 Alien Tech Used (3) 600 Bonus (42984) 42984 TOTAL SCORE: 75542 Bonus ------- High Alert Combat Kills 6096 Follower Combat Kills 3076 Prayed to X0-1V1 5000 Major X0-1V1 Interference 18250 Subatomizer Sterilization 3000 Entered Garrisons 1200 Used RIF Installer 3500 Win 3000 Friendly Fire -138 Cogmind --------- Core Integrity 1227/1400 Matter 450/450 Energy 1194/1390 System Corruption 2% Temperature Cool (18) Movement Flying (26) Location To Epsilon Eridani Parts ------- > --- POWER (2) -------- Light Quantum Reactor > --- PROPULSION (9) --- Impulse Thruster Q-thruster Cooled Impulse Thruster Impulse Thruster Array Impulse Thruster Array (fused) Impulse Thruster Array > --- UTILITY (11) ----- Advanced Sensor Array (fused) Advanced Signal Interpreter Experimental Armor Integrity Analyzer Advanced Reaction Control System SHELL Armor Advanced System Shield > --- WEAPON (3) ------- Sigix Broadsword > --- INVENTORY (5) ---- Protomatter-71 Improved Ion Engine Armored Medium Treads Hypervelocity Multirail Peak State ------------ > --- POWER ------------ Light Quantum Reactor > --- PROPULSION ------- Impulse Thruster Q-thruster Cooled Impulse Thruster Impulse Thruster Array Impulse Thruster Array Impulse Thruster Array > --- UTILITY ---------- Advanced Sensor Array Advanced Signal Interpreter Improved Armor Integrity Analyzer Experimental Armor Integrity Analyzer Advanced Reaction Control System SHELL Armor Advanced System Shield X0-1V1's Piety Tracker > --- WEAPON ----------- Sigix Broadsword > --- INVENTORY -------- Protomatter Improved Ion Engine Armored Medium Treads Q-thruster Hypervelocity Multirail [Rating: 195] Favorites ----------- Power Quantum Reactor Engine Makeshift Power Source Power Core Light Nuclear Core Reactor Quantum Reactor Propulsion Armored Huge Wheel Treads Light Treads Leg Makeshift Leg Wheel Armored Huge Wheel Hover Unit Antigrav Array Flight Unit Field Propulsion Array Utility Huge Storage Unit Device X0-1V1's Piety Tracker Storage Huge Storage Unit Processor Core Analyzer Hackware Relay Coupler [Sentry] Protection Medium Reactive Plating Weapon Gauss Cannon Energy Gun Heavy Laser Energy Cannon Enhanced Nova Cannon Ballistic Gun Railgun Ballistic Cannon Gauss Cannon Launcher Long-range Missile Launcher Special Weapon Advanced Remote Datajack Impact Weapon Core Stripper Slashing Weapon Sigix Broadsword Piercing Weapon Enhanced Force Lance Build | -11 -10 -10 -8 -8 -8 -8 -7 -7 -7 -7 -6 -6 -6 -5 -5 -4 -4 -4 -4 -3 -3 -2 -2 -1 ------- Run | Yrd Mat Sub Mat Gar Mat Gar Fac Low Low Zio Pro Fac Gar Fac Gar Fac Gar Fac Gar Res Qua Res Tes Acc Slots Evolved 18 | . . . 4 . . . 2 . . . . 2 . 2 . 2 . . . 2 . 2 . 2 Power . | . . . . . . . . . . . . . . . . . . . . . . . . . Propulsion 6 | . . . 2 . . . 1 . . . . . . . . 1 . . . 1 . 1 . . Utility 10 | . . . 1 . . . 1 . . . . 1 . 2 . 1 . . . 1 . 1 . 2 Weapon 2 | . . . 1 . . . . . . . . 1 . . . . . . . . . . . . Parts Attached 319 | 7 12 4 23 4 6 14 11 4 1 26 1 29 26 8 41 1 19 . 5 28 9 20 9 11 Power 31 | 1 1 . 1 1 1 1 . 1 . 4 . 2 . 1 5 . 3 . 1 1 2 4 . 1 Engine 14 | 1 1 . 1 . 1 . . 1 . 4 . 1 . . 1 . 1 . . . 1 1 . . Core 5 | . . . . 1 . 1 . . . . . 1 . 1 1 . . . . . . . . . Reactor 12 | . . . . . . . . . . . . . . . 3 . 2 . 1 1 1 3 . 1 Propulsion 87 | 2 3 . 10 . 3 3 3 . 1 12 1 5 10 1 6 1 3 . . 9 1 3 3 7 Treads 36 | . 2 . 6 . 3 2 2 . . 2 . . 5 1 5 1 3 . . 4 . . . . Leg 20 | . . . . . . . . . . 9 1 4 5 . 1 . . . . . . . . . Wheel 12 | 2 1 . 4 . . 1 1 . 1 1 . 1 . . . . . . . . . . . . Hover 2 | . . . . . . . . . . . . . . . . . . . . 1 . 1 . . Flight 17 | . . . . . . . . . . . . . . . . . . . . 4 1 2 3 7 Utility 117 | 2 4 2 6 3 1 5 4 1 . 5 . 9 9 4 16 . 7 . 2 13 4 12 5 3 Device 56 | 1 2 1 3 2 . 1 3 1 . 2 . 3 4 3 7 . 2 . 1 8 3 6 1 2 Storage 8 | 1 2 . 1 . . . . . . . . 1 1 . 1 . . . . . . 1 . . Processor 11 | . . . . . . . 1 . . 2 . 1 . . . . . . 1 3 1 1 . 1 Hackware 24 | . . . . . . 3 . . . . . 2 2 1 7 . 5 . . 2 . 2 . . Protection 18 | . . 1 2 1 1 1 . . . 1 . 2 2 . 1 . . . . . . 2 4 . Artifact . | . . . . . . . . . . . . . . . . . . . . . . . . . Weapon 84 | 2 4 2 6 . 1 5 4 2 . 5 . 13 7 2 14 . 6 . 2 5 2 1 1 . Energy Gun 16 | . 3 2 . . . . . 1 . 2 . . . . 6 . . . . 2 . . . . Energy Cannon 9 | . . . . . . . . . . . . . 1 . 3 . 3 . . 1 . 1 . . Ballistic Gun 22 | 2 1 . 4 . . 1 . . . 2 . 4 4 1 2 . . . . . . . 1 . Ballistic Cannon 25 | . . . 2 . . 3 3 1 . . . 8 1 1 . . 3 . 2 1 . . . . Launcher 4 | . . . . . 1 . 1 . . 1 . . . . 1 . . . . . . . . . Special Weapon 5 | . . . . . . 1 . . . . . 1 1 . 2 . . . . . . . . . Impact Weapon 1 | . . . . . . . . . . . . . . . . . . . . . 1 . . . Slashing Weapon 1 | . . . . . . . . . . . . . . . . . . . . . 1 . . . Piercing Weapon 1 | . . . . . . . . . . . . . . . . . . . . 1 . . . . Special Melee Weapon . | . . . . . . . . . . . . . . . . . . . . . . . . . Unidentified Prototypes 20 | . 1 . 1 . . . . . . 2 . 2 1 . . . . . . . 3 1 5 4 Corrupted Parts 2 | . . . . . . . . . . . . . . . 2 . . . . . . . . . System Corruption 18 | . . . . . . . . . . . . . . . 18 . . . . . . . . . Parts Lost 112 | . . 3 3 2 . 2 5 1 1 13 . 15 10 3 18 . . . . 21 6 3 1 5 Power 13 | . . . . 1 . . 1 . . 3 . 3 . . 1 . . . . 3 1 . . . Propulsion 39 | . . 1 1 . . 1 3 . 1 3 . 6 6 1 5 . . . . 5 2 1 . 3 Utility 30 | . . 1 1 1 . . . . . 3 . 2 . 1 7 . . . . 8 3 . 1 2 Weapon 30 | . . 1 1 . . 1 1 1 . 4 . 4 4 1 5 . . . . 5 . 2 . . Highest Loss Streak 7 | . . 2 1 2 . 1 4 1 1 3 . 5 4 1 5 . . . . 4 6 7 1 2 To Critical Strikes 2 | . . . . . . . . . . 2 . . . . . . . . . . . . . . Average Backups 18 | 2 9 14 20 22 21 21 21 21 21 21 22 21 17 16 17 21 22 22 22 20 2 2 3 3 Power . | . . 2 1 1 1 1 1 . . . . . . . . 1 1 1 1 1 . 1 1 1 Propulsion 2 | 1 2 1 1 2 2 1 2 3 2 2 6 4 1 4 3 6 5 5 4 2 . . . 1 Utility 7 | . 3 5 6 4 4 4 10 11 12 12 10 10 8 6 7 5 5 5 6 8 . . . . Weapon 5 | . 2 4 10 14 14 12 5 5 5 4 4 4 4 2 2 3 7 9 7 6 1 1 1 1 Tool/Special . | . . . . . . . . . . . . . . . . . . . . . . . . . Unused Backups 86 | . 5 1 10 2 3 7 12 . . 7 1 3 7 1 4 . 4 . 3 8 2 1 3 2 Power 3 | . . . 1 . . . . . . . . . . . . . . . . . . 1 . 1 Propulsion 20 | . 1 . 2 . 2 3 3 . . 5 1 . . . . . 1 . . 1 . . . 1 Utility 30 | . 2 1 3 2 1 1 1 . . 1 . 1 7 1 2 . . . 2 3 1 . 1 . Weapon 27 | . 2 . 4 . . 3 7 . . . . 2 . . 1 . 2 . . 4 . . 2 . Tool/Special 6 | . . . . . . . 1 . . 1 . . . . 1 . 1 . 1 . 1 . . . Average Slot Usage (%) 77 | . 100 99 94 88 90 80 77 75 75 79 92 87 73 69 70 76 74 73 70 57 68 67 63 59 Engine 4 | . 14 14 9 . 6 3 . 7 7 11 15 10 . . . . . . . . 2 1 . . Core 1 | . . . . 8 2 4 2 . . . . . . 2 2 . . . . . . . . . Reactor 2 | . . . . . . . . . . . . . . . 2 8 10 10 10 7 . 6 5 3 Treads 11 | . 26 28 14 18 18 12 12 7 7 5 . . 13 16 11 13 15 15 12 12 . . . . Leg 4 | . . . . . . . . . . 6 30 24 14 . . . . . . . . . . . Wheel 5 | . 1 . 17 9 9 8 10 15 14 12 7 6 . . . . . . . . . . . . Flight 1 | . . . . . . . . . . . . . . . . . . . . . 20 16 18 21 Device 6 | . 14 10 11 9 9 1 4 12 7 4 . 2 . 5 8 6 6 5 9 6 16 12 11 11 Storage 6 | . 14 14 9 9 9 8 6 7 7 6 7 6 6 5 4 4 5 5 5 3 . . . . Processor 1 | . . . . . . . 5 . . 1 7 4 . . . . . . . . 16 10 8 7 Hackware 8 | . . . . . . 5 6 7 7 5 . 5 15 16 13 13 17 21 16 13 . 4 4 3 Protection 2 | . . 3 5 7 9 6 2 . . 1 7 5 2 2 . . . . . . . 4 7 4 Energy Gun 3 | . 4 27 8 . . . . 1 7 6 . . . . 9 6 . . . . . . . . Ballistic Gun 5 | . 23 . 15 9 9 6 . . . 3 7 9 12 13 7 6 . . . . . . . . Ballistic Cannon 7 | . . . 2 18 18 18 17 13 15 6 . 7 4 2 1 . 8 5 8 7 . . . . Peak Build Rating 195 | 7 24 24 48 48 48 56 52 59 48 63 60 71 89 111 140 148 159 140 146 153 170 177 182 195 Average Rating 79 | 5 8 20 33 46 46 44 49 54 47 54 60 63 67 98 102 139 146 140 137 126 142 157 161 182 On Entrance 78 | . 7 24 23 48 47 48 44 47 48 48 60 60 53 88 109 140 136 140 140 130 90 110 159 170 Avg Prop Armor Cover (%) 10 | . 10 . 13 12 12 10 9 7 7 10 15 12 10 9 3 . . . . 30 3 1 . . Naked Turns 6 | . . . . . . . . . . . . . . . . . . . . 6 . . . . Heaviest Build 246 | 14 34 37 106 106 108 125 126 106 106 124 120 130 101 110 246 246 240 220 231 235 45 51 52 66 Greatest Support 235 | 26 40 40 52 28 28 28 56 56 56 56 28 96 225 225 225 230 235 230 230 235 51 61 62 72 Greatest Overweight (x) 41 | . . 1 3 3 3 4 41 1 3 4 4 6 1 . 1 1 1 . 1 1 . 1 . 1 Average Overweight (x) 1 | . . . 2 3 3 3 2 1 1 1 4 3 . . . . . . . . . . . . Largest Inventory Capacity 30 | 8 15 15 25 25 25 25 25 25 25 25 25 25 25 25 30 30 30 30 30 30 5 5 5 5 Average Capacity 23 | 7 9 15 22 25 25 25 25 25 25 25 25 24 21 25 25 30 30 30 30 28 5 5 5 5 Most Carried 30 | 6 15 15 25 25 25 25 25 25 24 25 25 25 25 25 30 30 30 30 30 30 5 5 5 5 Average Carried 22 | 2 9 14 21 24 24 24 24 24 23 23 24 23 21 24 23 29 29 30 29 25 4 4 4 4 Final Capacity 30 | 8 15 15 25 25 25 25 25 25 25 25 25 20 25 25 30 30 30 30 30 5 5 5 5 5 Final Carried 30 | 6 15 15 25 25 25 25 25 24 24 25 25 20 25 23 30 29 30 30 30 5 5 5 5 4 Class Distribution -------------------- 24% | Bothacker-Gunner 19% | Bothacker-Tank 9% | Tank 8% | Bothacker-Mutant 8% | Botlord-Tank 7% | Mutant 6% | Sprinter 3% | Gunner 3% | Hauler-Tank 3% | Scavenger-Tank Dominant Class ---------------- Mutant | -10/Materials Mutant | -10/Subcaves Tank | -8/Materials Scavenger-Tank | -8/Garrison Tank | -8/Materials Tank | -8/Garrison Bothacker-Gunner | -7/Factory Bothacker-Mutant | -7/Lower Caves Bothacker-Gunner | -7/Lower Caves Bothacker-Gunner | -7/Zion Bothacker-Mutant | -6/Proximity Caves Bothacker-Gunner | -6/Factory Bothacker-Tank | -6/Garrison Bothacker-Tank | -5/Factory Bothacker-Tank | -5/Garrison Bothacker-Tank | -4/Factory Botlord-Tank | -4/Garrison Botlord-Tank | -4/Factory Botlord-Tank | -4/Garrison Hauler-Tank | -3/Research Sprinter | -3/Quarantine Sprinter | -2/Research Sprinter | -2/Testing Sprinter | -1/Access Resources | -11 -10 -10 -8 -8 -8 -8 -7 -7 -7 -7 -6 -6 -6 -5 -5 -4 -4 -4 -4 -3 -3 -2 -2 -1 ----------- Run | Yrd Mat Sub Mat Gar Mat Gar Fac Low Low Zio Pro Fac Gar Fac Gar Fac Gar Fac Gar Res Qua Res Tes Acc Matter Collected 21437 | 275 304 65 672 657 400 2521 843 253 198 2269 301 2296 2098 766 1292 . 1381 . 810 2509 131 850 377 169 Remotely . | . . . . . . . . . . . . . . . . . . . . . . . . . Salvage Created 18447 | 118 388 289 1045 594 366 552 716 178 52 1279 60 1901 1875 960 1353 110 466 . 315 3928 469 466 192 775 Parts 913 | 10 25 19 66 32 18 33 28 3 1 126 5 69 103 46 40 7 17 . 14 153 12 29 11 46 Haulers Intercepted 7 | . 1 . 2 . . . 1 . . . . 1 . . . . . . . . . 1 . 1 Recyclers Shooed 11 | . 2 . . . . . 1 . . . . 4 . 1 . . . . . 2 . . 1 . Parts Field Recycled . | . . . . . . . . . . . . . . . . . . . . . . . . . Retrieved Matter . | . . . . . . . . . . . . . . . . . . . . . . . . . Parts Self-Destructed 19 | . . 11 . . . . . 2 2 1 3 . . . . . . . . . . . . . Prevented 4 | . . 3 . . . . . . . . 1 . . . . . . . . . . . . . Parts Restored . | . . . . . . . . . . . . . . . . . . . . . . . . . Kills | -11 -10 -10 -8 -8 -8 -8 -7 -7 -7 -7 -6 -6 -6 -5 -5 -4 -4 -4 -4 -3 -3 -2 -2 -1 ------- Run | Yrd Mat Sub Mat Gar Mat Gar Fac Low Low Zio Pro Fac Gar Fac Gar Fac Gar Fac Gar Res Qua Res Tes Acc Combat Hostiles Destroyed 301 | . 13 6 19 16 12 20 17 1 2 11 5 29 23 15 24 1 12 . 6 53 2 4 . 10 Melee 18 | . . . . . . . . . . . . . . . 2 . . . . . 2 4 . 10 Guns 114 | . 13 6 19 8 4 3 . . 2 3 . 16 12 12 13 1 . . . 2 . . . . Cannons 115 | . . . . 8 5 14 14 1 . 3 . 10 4 3 6 . 12 . 6 29 . . . . AOE 40 | . . . . . 3 3 3 . . 3 5 3 6 . 2 . . . . 12 . . . . Classes Destroyed 27 | 3 3 2 2 4 . . 3 . . 4 . . 1 . 1 . . . . 3 . . 1 . Worker 24 | 1 2 . 2 . . . 3 . . . . 3 . 2 . . . . . 9 . 1 . 1 Builder 20 | . . . 1 . . . 3 . . . . 2 . 2 . . . . . 12 . . . . Tunneler 7 | 2 . . . . . . . . . . . 2 . . . . . . . 1 . 2 . . Hauler 7 | . 1 . 2 . . . 1 . . . . 1 . . . . . . . . . 1 . 1 Recycler 18 | 1 . . 1 . . . 2 . . . . 4 . 1 . . . . . 6 2 . 1 . Mechanic 1 | . . . . . . . 1 . . . . . . . . . . . . . . . . . Operator 5 | . . . . . . . 1 . . . . . . . . 1 . . . . 2 . . 1 Drone 1 | . . . . . . . . . . . . . . . 1 . . . . . . . . . Watcher 4 | . . . 1 . . . . . . . . 1 . 1 . . . . . . 1 . . . Swarmer 61 | . 9 . 6 . 3 4 . . . . 4 10 6 1 . . 6 . . 8 1 . . 3 Cutter 4 | . . . . . . . . . . . . . 4 . . . . . . . . . . . Saboteur 1 | . . . . . . . . . . . . . . . . . . . . 1 . . . . Grunt 103 | . 4 3 7 5 2 10 5 . 1 . . 10 11 3 17 . 2 . 5 17 . 1 . . Brawler 7 | . . . . 1 2 . . . . . . . . . 2 . . . . 2 . . . . Duelist 9 | . . . . 2 . . 1 . . 1 . . . . . . . . . 5 . . . . Protector 1 | . . . . . . . . . . . . . . . . . . . . 1 . . . . Researcher 1 | . . . . . . . . . . . . . . . . . . . . . . . 1 . Sentry 41 | . . 1 6 4 5 1 3 . . . 1 5 2 2 2 1 3 . . 3 . 2 . . Demolisher 1 | . . . . . . . . . . . . . . . . . . . . 1 . . . . Specialist 4 | . . . . . . . 3 . . . . 1 . . . . . . . . . . . . Hunter 15 | . . . . 1 . 2 1 . 1 . . 1 . 2 . . . . . 5 . . . 2 Programmer 38 | . . . . 3 . 4 4 1 . . . 2 . 6 . . . . 1 10 1 1 . 5 Behemoth 5 | . . . . . . . . . . . . 1 1 . 2 . 1 . . . . . . . Subdweller 2 | . . 2 . . . . . . . . . . . . . . . . . . . . . . Zionite 79 | . . . . . . . . . . 79 . . . . . . . . . . . . . . Packrat 2 | . . . . . . . . 2 . . . . . . . . . . . . . . . . Tinkerer 5 | . . . . . . . . . . 5 . . . . . . . . . . . . . . Thug 1 | . . . . . . . . . . 1 . . . . . . . . . . . . . . Butcher 2 | . . . . . . . . . . 1 . . . 1 . . . . . . . . . . Marauder 2 | . . . . . . . . . . 2 . . . . . . . . . . . . . . Mutant 6 | . . . . . . . . . . 6 . . . . . . . . . . . . . . Best Kill Streak 33 | 2 5 3 4 5 4 3 7 1 1 15 4 7 7 4 4 2 6 . 3 33 2 2 1 3 Combat Bots Only 14 | . 5 3 3 5 4 3 4 1 1 2 4 5 7 3 4 1 6 . 3 14 1 2 . 3 Max Kills in Single Turn 4 | 1 2 1 2 2 2 3 2 1 1 2 2 2 3 2 2 2 2 . 1 4 1 1 1 1 Gunslinging 1 | . 1 . . . . . . . . . . 1 . . . . . . . 1 . . . . Exploded 3 | . . . . . 2 2 2 . . 1 2 1 3 . 2 . . . . 3 . . . . Melee 1 | . . . . . . . . . . . . . . . 1 . . . . . 1 1 . 1 Uniques/NPCs Destroyed . | . . . . . . . . . . . . . . . . . . . . . . . . . Combat | -11 -10 -10 -8 -8 -8 -8 -7 -7 -7 -7 -6 -6 -6 -5 -5 -4 -4 -4 -4 -3 -3 -2 -2 -1 -------- Run | Yrd Mat Sub Mat Gar Mat Gar Fac Low Low Zio Pro Fac Gar Fac Gar Fac Gar Fac Gar Res Qua Res Tes Acc Hostile Shots Fired 2860 | . 50 42 79 49 32 113 185 71 24 173 8 355 159 100 251 1 115 . 34 372 137 147 63 300 Missed 1059 | . 16 16 23 14 12 34 54 30 10 82 3 133 57 21 48 1 33 . 13 85 78 95 30 171 Hits 1801 | . 34 26 56 35 20 79 131 41 14 91 5 222 102 79 203 . 82 . 21 287 59 52 33 129 Melee 126 | . . . . . . 1 4 . . 16 . . 2 18 58 . . . . 27 . . . . Projectile 1675 | . 34 26 56 35 20 78 127 41 14 75 5 222 100 61 145 . 82 . 21 260 59 52 33 129 AOE 5 | . . . . . . . . . . . . . 3 . . . . . . 2 . . . . Critical Strikes 78 | . . . 3 2 3 7 5 . . 4 . 2 2 4 12 . 3 . 1 19 3 3 4 1 Part Disruptions 6 | . . . . . . . 1 . . 1 . . . . . . 1 . . 1 . . . 2 Actively Blocked 1 | . . . . . . . . . . . . . . . . . . . . . . . . 1 Damage Taken 30880 | . 325 382 799 547 292 1311 1549 305 221 1668 55 2546 1972 1499 3254 . 1835 . 512 6037 1048 1177 688 2858 Core 2493 | . 67 30 144 14 26 107 99 70 43 229 . 182 208 84 214 . 198 . 67 330 134 23 51 173 Absorbed by Shields 1612 | . . . . . . 13 . . . . . . . 7 537 . 117 . . 938 . . . . Reduced by Siege Mode 320 | . . . . . . . . . . . . . . 57 159 . . . . 104 . . . . Redirected to Shielding 113 | . . . . . . . . . . . . . . . . . . . . . . 32 38 43 Ignored by Resistances 707 | . . . . . . 11 48 . . 19 27 250 28 . . . . . . 324 . . . . Regen/Repaired (Parts) 3665 | . . . . . . . . . . . . . . . . . . . . 150 95 801 538 2081 Core Remaining (%) 75 | 100 . 80 . . . 88 . . . . 31 . 40 . 62 . . . 91 . 81 . 95 87 Volleys Fired 1107 | 12 31 15 60 43 22 85 50 12 6 210 9 112 80 51 104 1 46 . 28 129 . . 1 . Largest 6 | 2 2 2 3 3 3 3 3 2 3 3 1 3 3 3 6 4 4 . 3 3 . . 1 . Hottest 395 | 40 85 105 125 105 105 117 120 80 160 160 43 132 132 115 382 310 395 . 243 181 . . 35 . Shots Fired 2508 | 24 62 30 178 113 60 204 138 25 19 357 9 276 193 152 247 5 109 . 54 252 . . 1 . Gun 1152 | 24 62 30 176 35 19 59 . 1 6 137 . 139 115 133 198 2 2 . . 13 . . 1 . Cannon 1120 | . . . 2 78 38 135 134 24 13 117 . 127 40 19 44 3 94 . 43 209 . . . . Launcher 165 | . . . . . 3 3 4 . . 103 9 5 7 . 3 . . . . 28 . . . . Special 71 | . . . . . . 7 . . . . . 5 31 . 2 . 13 . 11 2 . . . . Kinetic 1930 | 24 56 . 118 113 57 194 134 24 13 167 . 266 155 152 172 2 48 . 26 208 . . 1 . Thermal 330 | . 6 2 56 . . . . 1 6 87 . . 21 . 70 3 48 . 17 13 . . . . Explosive 110 | . . . . . 3 3 4 . . 91 9 . . . . . . . . . . . . . Electromagnetic 88 | . . 28 4 . . . . . . 12 . 5 7 . 3 . . . . 29 . . . . Robot Hit Streak 27 | 4 11 12 12 8 7 9 12 11 9 9 5 11 27 9 14 2 10 . 7 16 . . . . Robot Miss Streak 13 | 2 3 3 5 3 2 6 5 2 2 7 1 8 8 6 13 1 4 . 5 13 . . . . Penetration Max 2 | . . . . 1 . 1 1 . . . . 1 1 2 1 1 . . . 1 . . . . Secondary Targets 15 | . 3 2 3 . . . . . . 1 . 3 2 . . . . . . 1 . . . . Max Gunslinging Chain 1 | . 1 1 1 . . . . . . 1 . 1 1 . . . . . . 1 . . . . Shots Hit Robots 1466 | 12 39 23 108 60 35 103 79 20 13 195 4 166 105 80 151 2 61 . 32 122 9 13 4 30 Core Hits 897 | 7 21 17 42 26 17 40 52 7 6 142 9 121 64 39 62 4 18 . 9 171 4 8 2 9 Critical Kills 11 | . . . 1 . . . . . . . . 6 2 2 . . . . . . . . . . Critical Parts Destroyed 10 | 1 . . . . . . . . . . . 4 3 2 . . . . . . . . . . Critical Strikes 104 | 1 1 . 1 5 2 12 8 3 1 9 . 13 8 8 9 . 5 . 4 12 . . . 2 Burn 11 | . 1 . . . . . . . . 6 . . . . 3 . . . . 1 . . . . Destroy 21 | 1 . . 1 . . . . . . . . 10 5 4 . . . . . . . . . . Blast 70 | . . . . 5 2 12 8 3 1 3 . 3 3 4 6 . 5 . 4 11 . . . . Sever 2 | . . . . . . . . . . . . . . . . . . . . . . . . 2 Melee Attacks 135 | . . . . . . . . . . . . . . . 15 . . . . 1 21 33 17 48 Impact . | . . . . . . . . . . . . . . . . . . . . . . . . . Slashing 128 | . . . . . . . . . . . . . . . 15 . . . . . 15 33 17 48 Piercing 7 | . . . . . . . . . . . . . . . . . . . . 1 6 . . . Sneak Attacks 14 | . . . . . . . . . . . . . . . . . . . . . 3 6 3 2 Combat Hostiles . | . . . . . . . . . . . . . . . . . . . . . . . . . Follow-up Attacks . | . . . . . . . . . . . . . . . . . . . . . . . . . Damage Inflicted 56749 | 115 541 313 1807 1654 994 2725 2979 553 265 7946 622 4311 3093 2410 4368 121 2367 . 1394 11836 1131 1742 523 2939 Guns 14587 | 115 518 313 1807 431 193 516 . 8 111 1592 . 1885 1862 2021 2738 80 51 . . 346 . . . . Cannons 24424 | . . . . 1223 591 2059 2422 545 154 1474 . 1992 593 389 924 41 2316 . 1394 8265 42 . . . Explosions 11076 | . . . . . 210 150 530 . . 4874 622 434 549 . 482 . . . . 3225 . . . . Melee 6517 | . . . . . . . . . . . . . . . 224 . . . . . 1089 1742 523 2939 Ramming 56 | . 23 . . . . . 27 . . 6 . . . . . . . . . . . . . . Kinetic 33636 | 115 439 . 908 1654 784 2575 2422 545 154 1852 . 3877 2455 2410 2811 80 1340 . 950 8265 . . . . Thermal 5607 | . 79 . 858 . . . . 8 111 1214 . 110 115 . 871 41 1027 . 444 687 42 . . . Explosive 6468 | . . . . . 210 150 530 . . 4650 622 113 . . 193 . . . . . . . . . Electromagnetic 4465 | . . 313 41 . . . . . . 224 . 211 523 . 269 . . . . 2884 . . . . Impact . | . . . . . . . . . . . . . . . . . . . . . . . . . Slashing 6408 | . . . . . . . . . . . . . . . 224 . . . . . 980 1742 523 2939 Piercing 109 | . . . . . . . . . . . . . . . . . . . . . 109 . . . Highest Corruption 75 | . . 1 . 1 8 9 . 12 12 29 11 4 34 4 75 . 11 1 1 24 24 15 1 3 Average Corruption 11 | . . 1 . 1 2 7 . 12 12 14 11 2 19 3 33 . 1 1 1 11 24 5 1 2 Corruption Purged . | . . . . . . . . . . . . . . . . . . . . . . . . . Corruption Blocked . | . . . . . . . . . . . . . . . . . . . . . . . . . Effects 459 | . . 1 . 2 5 25 . 7 11 103 16 20 43 11 117 . 12 1 4 39 20 17 . 5 Message Errors 108 | . . . . 1 1 7 . 2 1 29 6 4 12 3 23 . 4 . . 8 4 3 . . Matter Fused 100 | . . . . 1 1 3 . . 3 26 3 5 12 1 23 . 1 . 2 11 6 1 . 1 Heat Flow Errors 54 | . . 1 . . 2 4 . 3 1 8 1 3 1 2 16 . 3 1 1 1 2 3 . 1 Energy Discharges 36 | . . . . . . 3 . 1 2 8 2 4 3 2 6 . . . . 3 . 2 . . Parts Rejected 9 | . . . . . . 1 . . . 1 . . . . 3 . . . . 2 . . . 2 Parts Fused 7 | . . . . . . . . . . 4 . . . . 2 . 1 . . . . . . . Data Loss (minor) 48 | . . . . . 1 2 . . 1 13 1 2 3 1 14 . 1 . 1 3 . 5 . . Data Loss (major) 19 | . . . . . . . . . 1 3 . 1 6 . 2 . . . . 5 1 . . . Misfires 21 | . . . . . . 3 . 1 1 3 . . 3 1 6 . 2 . . 1 . . . . Alerts 13 | . . . . . . 1 . . 1 . 3 . 3 . 3 . . . . 1 . . . 1 Misdirections 14 | . . . . . . . . . . 1 . . . . 2 . . . . 1 7 3 . . Weapon Failures 30 | . . . . . . 1 . . . 7 . 1 . 1 17 . . . . 3 . . . . Overload Shots . | . . . . . . . . . . . . . . . . . . . . . . . . . Overflow Damage 3364 | . . . . 93 23 104 73 . . 245 40 66 20 . 28 . 56 . 61 1001 354 103 110 987 Projectiles 1467 | . . . . 93 12 104 52 . . 58 . 50 . . . . 56 . 61 981 . . . . Explosions 325 | . . . . . 11 . 21 . . 187 40 16 20 . 10 . . . . 20 . . . . Melee 1572 | . . . . . . . . . . . . . . . 18 . . . . . 354 103 110 987 Knockbacks 131 | . . . . 8 4 18 22 1 . 11 . 10 . 2 8 . 4 . 9 34 . . . . Impact . | . . . . . . . . . . . . . . . . . . . . . . . . . Kinetic 117 | . . . . 8 4 14 19 1 . 11 . 10 . 2 7 . 3 . 8 30 . . . . Secondary 14 | . . . . . . 4 3 . . . . . . . 1 . 1 . 1 4 . . . . Self-Inflicted Damage 1031 | . . . . . . 130 13 . . 138 . . 173 . 112 . . . . 465 . . . . Shots 46 | . . . . . . 2 . . . 3 . . 5 . 2 . . . . 34 . . . . Rammed 6 | . 4 . . . . . 1 . . 1 . . . . . . . . . . . . . . Targets Rammed 6 | . 4 . . . . . 1 . . 1 . . . . . . . . . . . . . . Kicked . | . . . . . . . . . . . . . . . . . . . . . . . . . Crushed . | . . . . . . . . . . . . . . . . . . . . . . . . . Highest Temperature 516 | . 81 117 410 333 319 433 280 169 151 444 184 396 129 152 516 156 420 238 324 411 230 168 48 303 Average Temperature 102 | . 37 60 105 112 90 146 87 72 119 122 69 87 46 46 114 82 121 126 94 111 95 38 8 92 Received Heat Transfer 5463 | . 72 90 378 198 153 342 456 72 9 135 . 447 312 144 856 . 677 . 111 387 336 90 63 135 Effects 34 | . . . 6 . . 2 . . . 4 . 4 . . 9 . 3 . . 6 . . . . Shutdowns 14 | . . . 2 . . . . . . 3 . 1 . . 4 . 3 . . 1 . . . . Energy Bleed 7 | . . . 2 . . 1 . . . 1 . . . . . . . . . 3 . . . . Interference 5 | . . . . . . . . . . . . 1 . . 3 . . . . 1 . . . . Matter Decay 3 | . . . 1 . . 1 . . . . . . . . . . . . . 1 . . . . Short Circuit 3 | . . . 1 . . . . . . . . 2 . . . . . . . . . . . . Damage (major) 2 | . . . . . . . . . . . . . . . 2 . . . . . . . . . Siege Activations 9 | . . . . . . . . . . . . . 1 3 3 . . . . 2 . . . . Total Turns 174 | . . . . . . . . . . . . . 4 48 91 . . . . 31 . . . . Longest Duration 47 | . . . . . . . . . . . . . 4 27 47 . . . . 16 . . . . Martial Activations . | . . . . . . . . . . . . . . . . . . . . . . . . . Shielding Activations . | . . . . . . . . . . . . . . . . . . . . . . . . . Robots Disrupted 1 | . . . . . . . . . . . . . . . . . . . . 1 . . . . Combat Hostiles 1 | . . . . . . . . . . . . . . . . . . . . 1 . . . . Robots Corrupted 14 | . . . . . . . . . . 2 . . 1 . 1 . . . . 10 . . . . Combat Hostiles 14 | . . . . . . . . . . 2 . . 1 . 1 . . . . 10 . . . . Parts Fried 41 | . . 2 . . . . . . . 2 . 1 1 . . . . . . 33 . . . 2 Impact Corruptions 3 | . . . . . . . . . . . . . . . . . . . . 3 . . . . Robots Melted . | . . . . . . . . . . . . . . . . . . . . . . . . . Combat Hostiles . | . . . . . . . . . . . . . . . . . . . . . . . . . Parts Melted 17 | . . . 4 . . . 1 . . 4 . . . . 1 . 2 . 1 4 . . . . Heat Transferred 8844 | . 259 . 1025 . . . . 6 250 2554 . 100 425 . 1900 37 850 . 370 1031 37 . . . Parts Sabotaged . | . . . . . . . . . . . . . . . . . . . . . . . . . Parts Stolen 12 | . . . . . . . . . . . . . . 2 10 . . . . . . . . . Parts Stripped . | . . . . . . . . . . . . . . . . . . . . . . . . . Power Chain Reactions 11 | . . . . . . . . . . . . 1 2 . 1 . . . . 7 . . . . Alert | -11 -10 -10 -8 -8 -8 -8 -7 -7 -7 -7 -6 -6 -6 -5 -5 -4 -4 -4 -4 -3 -3 -2 -2 -1 ------- Run | Yrd Mat Sub Mat Gar Mat Gar Fac Low Low Zio Pro Fac Gar Fac Gar Fac Gar Fac Gar Res Qua Res Tes Acc Maximum Alert Level 5 | . . . 1 3 2 4 3 . . . . 3 5 4 4 3 4 3 4 4 3 3 2 4 Low Security (%) 9 | 100 100 . 45 1 . . . . . . . 18 . . . . . . . . . . . . Level 1 7 | . . . 54 26 60 1 . . . . . 2 . . . . . . . . . 25 . 34 Level 2 26 | . . . . 57 39 32 46 . . . . 43 1 . . . 14 . 23 53 1 57 100 24 Level 3 35 | . . . . 14 . 41 53 . . . . 35 31 47 38 100 33 100 75 25 98 16 . 37 Level 4 19 | . . . . . . 24 . . . . . . 42 52 61 . 52 . 1 20 . . . 3 Level 5 1 | . . . . . . . . . . . . . 25 . . . . . . . . . . . High Security . | . . . . . . . . . . . . . . . . . . . . . . . . . Max Security . | . . . . . . . . . . . . . . . . . . . . . . . . . Sterilizations 1 | . . . . . . . 1 . . . . . . . . . . . . . . . . . Peak Influence 1814 | 5 140 . 338 708 561 1378 912 . . . . 969 1814 1163 1593 862 1567 822 1121 1391 806 984 646 1132 Initial 952 | . 3 . . 191 345 358 723 . . . . . 655 952 793 835 541 822 554 588 782 378 549 387 Average 782 | 1 72 . 209 483 408 876 707 . . . . 563 1268 1084 1190 819 1109 811 938 827 738 530 562 641 Influence Increases 15435 | 20 331 80 774 537 366 1120 899 53 163 20 110 1820 1279 594 1040 39 1126 . 692 1763 141 1054 217 1197 Destroy 0b10 Robot/C 6845 | . 260 80 380 320 240 600 340 40 60 20 100 820 600 380 540 20 440 . 285 960 30 165 15 150 Destroy 0b10 Robot/NC 503 | 20 15 . 35 . . 5 55 . . . . 120 30 30 . 5 . . . 132 20 20 4 12 Destroy Leader 1122 | . 42 . 96 30 70 40 92 10 10 . 10 226 10 72 20 10 40 . 40 194 10 58 . 42 Allied During Kill 1010 | . . . . . . 36 2 3 3 . . 173 85 20 13 . 184 . 292 163 3 33 . . Successful Hack 237 | . 14 . 20 42 2 28 7 . . . . . 46 . 18 . 28 . 11 . . . . 21 Select Force Hacks 30 | . . . . . . . . . . . . . . 30 . . . . . . . . . . Disable Machine 663 | . . . 30 15 15 15 75 . . . . 315 30 . . . 60 . . . 72 12 24 . Anti-Garrison Action 1463 | . . . . 100 . 300 . . . . . . 400 . 350 . 313 . . . . . . . Destroy Structure 890 | . . . 2 30 39 51 52 . . . . 121 48 62 84 4 61 . 52 182 6 54 30 12 Partial Spotted 120 | . . . . . . . . . . . . . . . . . . . . 12 . 72 24 12 Lose Combat Pursuer 2046 | . . . 105 . . 45 60 . 90 . . 45 30 . 15 . . . 12 120 . 456 120 948 Miscellaneous 506 | . . . 106 . . . 216 . . . . . . . . . . . . . . 184 . . Influence Decreases 14303 | 15 331 85 480 123 523 293 1377 503 276 357 108 886 401 1274 581 858 333 775 438 1418 859 751 547 711 Entered New Map 7583 | . 2 3 . 103 363 193 655 333 86 337 . 2 281 862 341 758 233 745 238 458 609 295 427 259 Time Decay 4656 | 15 329 68 460 . 160 . 672 160 160 20 108 554 . 342 . 100 . 30 . 610 130 326 110 302 Search Patrol Dispatched 100 | . . . . . . . . . . . . . . . . . . . . . . . . 100 Lost Part 964 | . . 14 20 20 . 20 50 10 10 . . 150 100 30 180 . . . . 210 60 30 10 50 Lost Ally 1000 | . . . . . . 80 . . 20 . . 180 20 40 60 . 100 . 200 140 60 100 . . Squads Dispatched 90 | . . . 2 . 3 . 9 . . . . 16 . 6 . . . . . 23 5 10 7 9 Investigation 9 | . . . 2 . 1 . 1 . . . . . . 1 . . . . . 1 1 . . 2 Extermination 23 | . . . . . . . 2 . . . . 5 . 2 . . . . . 5 1 2 1 5 Reinforcement 32 | . . . . . . . 1 . . . . 4 . 2 . . . . . 7 3 7 6 2 Assault 10 | . . . . . . . 5 . . . . . . . . . . . . 4 . 1 . . Garrison 16 | . . . . . 2 . . . . . . 7 . 1 . . . . . 6 . . . . Intercept . | . . . . . . . . . . . . . . . . . . . . . . . . . Searches Triggered 1 | . . . . . . . . . . . . . . . . . . . . . . . . 1 Construction Impeded 5 | . . . . . . . . . . . . 1 . 1 . . . . . 3 . . . . Haulers Reinforced 2 | . . . . . . . . . . . . . . . . . . . . . . 2 . . Active Scanning Responses . | . . . . . . . . . . . . . . . . . . . . . . . . . Cargo Convoy Interrupts 2 | . . . . . . . 1 . . . . 1 . . . . . . . . . . . . Stealth | -11 -10 -10 -8 -8 -8 -8 -7 -7 -7 -7 -6 -6 -6 -5 -5 -4 -4 -4 -4 -3 -3 -2 -2 -1 --------- Run | Yrd Mat Sub Mat Gar Mat Gar Fac Low Low Zio Pro Fac Gar Fac Gar Fac Gar Fac Gar Res Qua Res Tes Acc Distress Signals 29 | . 1 . . . . . 1 . . . . 5 . 3 1 . . . . 4 1 8 1 4 Communications Jammed . | . . . . . . . . . . . . . . . . . . . . . . . . . Distress Signals . | . . . . . . . . . . . . . . . . . . . . . . . . . Times Spotted 820 | . 17 10 23 21 16 47 30 2 10 82 2 48 41 21 34 2 38 . 27 97 32 75 32 113 Peak Tracking Total 22 | . 5 4 7 5 4 6 5 1 7 5 4 5 6 4 7 2 10 . 5 10 22 21 13 22 Tactical Retreats 62 | . . . 4 . . 2 4 . 3 2 . 3 2 . 1 . . . 1 7 . 9 4 20 Traps | -11 -10 -10 -8 -8 -8 -8 -7 -7 -7 -7 -6 -6 -6 -5 -5 -4 -4 -4 -4 -3 -3 -2 -2 -1 ------- Run | Yrd Mat Sub Mat Gar Mat Gar Fac Low Low Zio Pro Fac Gar Fac Gar Fac Gar Fac Gar Res Qua Res Tes Acc Traps Triggered 34 | . . . 1 1 . 2 . . . . . 3 6 . 5 . 2 . . 8 1 2 1 2 Indirectly 11 | . . . . . . . . . . . . 2 2 . . . . . . 7 . . . . Trap Hack Attempts . | . . . . . . . . . . . . . . . . . . . . . . . . . Triggered . | . . . . . . . . . . . . . . . . . . . . . . . . . Disarmed . | . . . . . . . . . . . . . . . . . . . . . . . . . Reprogrammed . | . . . . . . . . . . . . . . . . . . . . . . . . . Reused . | . . . . . . . . . . . . . . . . . . . . . . . . . Traps Extracted . | . . . . . . . . . . . . . . . . . . . . . . . . . Installed . | . . . . . . . . . . . . . . . . . . . . . . . . . Triggered . | . . . . . . . . . . . . . . . . . . . . . . . . . Machines | -11 -10 -10 -8 -8 -8 -8 -7 -7 -7 -7 -6 -6 -6 -5 -5 -4 -4 -4 -4 -3 -3 -2 -2 -1 ---------- Run | Yrd Mat Sub Mat Gar Mat Gar Fac Low Low Zio Pro Fac Gar Fac Gar Fac Gar Fac Gar Res Qua Res Tes Acc Machines Disabled 69 | . . . 2 2 1 5 6 . . 3 . 21 7 . 6 . 7 . . . 6 1 2 . Max in Single Turn 2 | . . . 1 1 1 2 1 . . 1 . 2 1 . 1 . 1 . . . 1 1 1 . Garrison Access 5 | . . . . . . . 4 . . . . . . . . . . . . . . 1 . . Garrison Relay 12 | . . . . 1 . 2 . . . . . . 3 . 3 . 3 . . . . . . . Phase Generator 4 | . . . . . . 1 . . . . . . 1 . . . 1 . 1 . . . . . Energy Cycler 1 | . . . . . . . . . . . . . . . . . . . . . . . . 1 Machines Repaired . | . . . . . . . . . . . . . . . . . . . . . . . . . Machines Dismantled . | . . . . . . . . . . . . . . . . . . . . . . . . . Machines Sabotaged . | . . . . . . . . . . . . . . . . . . . . . . . . . Overloaded Fab Kills . | . . . . . . . . . . . . . . . . . . . . . . . . . Hacking | -11 -10 -10 -8 -8 -8 -8 -7 -7 -7 -7 -6 -6 -6 -5 -5 -4 -4 -4 -4 -3 -3 -2 -2 -1 --------- Run | Yrd Mat Sub Mat Gar Mat Gar Fac Low Low Zio Pro Fac Gar Fac Gar Fac Gar Fac Gar Res Qua Res Tes Acc Machines Accessed 50 | . 5 1 8 4 3 2 1 . . . . 1 5 2 3 1 3 1 1 1 1 3 1 3 Terminals 37 | . 5 . 6 4 1 2 1 . . . . . 5 . 3 . 3 . 1 . 1 2 1 2 Fabricators . | . . . . . . . . . . . . . . . . . . . . . . . . . Repair Stations 2 | . . . . . . . . . . . . . . . . . . . . 1 . . . 1 Recycling Units . | . . . . . . . . . . . . . . . . . . . . . . . . . Scanalyzers 2 | . . . 1 . 1 . . . . . . . . . . . . . . . . . . . Garrison Access 8 | . . . 1 . 1 . . . . . . 1 . 2 . 1 . 1 . . . 1 . . Total Hacks 101 | . 10 5 16 7 5 7 5 . . . . 1 9 3 5 1 8 1 1 2 1 3 4 7 Successful 44 | . 5 5 5 3 3 2 2 . . . . 1 4 2 1 1 2 1 1 1 . 2 1 2 Failed 55 | . 5 . 10 4 1 5 3 . . . . . 5 1 4 . 6 . . 1 1 1 3 5 Catastrophic 15 | . . . 1 2 1 2 1 . . . . . 2 . 2 . . . . . . 1 1 2 Database Lockouts 2 | . . . 1 . 1 . . . . . . . . . . . . . . . . . . . Manual 37 | . 11 . 13 . 1 . 5 . . . . . . 2 . . . . . 2 . 1 . 2 Terminals 78 | . 10 . 13 7 1 7 5 . . . . . 9 . 5 . 8 . 1 . 1 2 4 5 Fabricators . | . . . . . . . . . . . . . . . . . . . . . . . . . Repair Stations 4 | . . . . . . . . . . . . . . . . . . . . 2 . . . 2 Recycling Units . | . . . . . . . . . . . . . . . . . . . . . . . . . Scanalyzers 5 | . . . 2 . 3 . . . . . . . . . . . . . . . . . . . Garrison Access 9 | . . . 1 . 1 . . . . . . 1 . 3 . 1 . 1 . . . 1 . . Terminal Hacks 23 | . . 5 1 3 . 2 1 . . . . . 4 . 1 . 2 . 1 . . 1 1 1 Record 5 | . . 5 . . . . . . . . . . . . . . . . . . . . . . Open Door 3 | . . . . . . . . . . . . . 1 . . . . . . . . . 1 1 Branch Access Points 3 | . . . 1 . . . 1 . . . . . . . . . . . . . . 1 . . Emergency Access Points 3 | . . . . 1 . . . . . . . . 1 . . . 1 . . . . . . . Garrison Registry 4 | . . . . 1 . 1 . . . . . . . . . . 1 . 1 . . . . . Patrol Navigation 4 | . . . . 1 . 1 . . . . . . 1 . 1 . . . . . . . . . Security Stations 1 | . . . . . . . . . . . . . 1 . . . . . . . . . . . Fabricator Hacks . | . . . . . . . . . . . . . . . . . . . . . . . . . Repair Station Hacks . | . . . . . . . . . . . . . . . . . . . . . . . . . Recycling Unit Hacks . | . . . . . . . . . . . . . . . . . . . . . . . . . Scanalyzer 3 | . . . 1 . 2 . . . . . . . . . . . . . . . . . . . Retrieve Study 3 | . . . 1 . 2 . . . . . . . . . . . . . . . . . . . Garrison Access Hacks 7 | . . . 1 . 1 . . . . . . 1 . 1 . 1 . 1 . . . 1 . . Unlock Access 6 | . . . 1 . 1 . . . . . . 1 . 1 . 1 . 1 . . . . . . Seal Access 1 | . . . . . . . . . . . . . . . . . . . . . . 1 . . Unauthorized Hacks 11 | . 5 . 2 . . . 1 . . . . . . 1 . . . . . 1 . . . 1 Terminals 8 | . 5 . 2 . . . 1 . . . . . . . . . . . . . . . . . Botnet 3 | . . . 2 . . . 1 . . . . . . . . . . . . . . . . . Operators 1 | . 1 . . . . . . . . . . . . . . . . . . . . . . . Skim 4 | . 4 . . . . . . . . . . . . . . . . . . . . . . . Fabricators . | . . . . . . . . . . . . . . . . . . . . . . . . . Repair Stations 2 | . . . . . . . . . . . . . . . . . . . . 1 . . . 1 Patch 2 | . . . . . . . . . . . . . . . . . . . . 1 . . . 1 Recycling Units . | . . . . . . . . . . . . . . . . . . . . . . . . . Scanalyzers . | . . . . . . . . . . . . . . . . . . . . . . . . . Garrison Access 1 | . . . . . . . . . . . . . . 1 . . . . . . . . . . Eject 1 | . . . . . . . . . . . . . . 1 . . . . . . . . . . Data Cores Recovered 1 | . . . . . . . . . . . . . . . . . . . . . 1 . . . Used . | . . . . . . . . . . . . . . . . . . . . . . . . . Hacking Detections 35 | . 4 . 5 2 3 2 1 . . . . . 3 1 3 1 3 . 1 . 1 1 1 3 Full Trace Events 9 | . . . 1 1 . 1 1 . . . . . 2 . . . 2 . . . . . . 1 Feedback Events . | . . . . . . . . . . . . . . . . . . . . . . . . . Feedback Blocked . | . . . . . . . . . . . . . . . . . . . . . . . . . Robot Schematics Acquired 1 | . . . . . . . . . . . . . . . . . . . . . . . 1 . Robots Built . | . . . . . . . . . . . . . . . . . . . . . . . . . Authchips . | . . . . . . . . . . . . . . . . . . . . . . . . . Time . | . . . . . . . . . . . . . . . . . . . . . . . . . Total Robot Build Rating . | . . . . . . . . . . . . . . . . . . . . . . . . . Part Schematics Acquired 1 | . . . . . . . . . . . . . . . . . . . . . . . 1 . Parts Built . | . . . . . . . . . . . . . . . . . . . . . . . . . Authchips . | . . . . . . . . . . . . . . . . . . . . . . . . . Time . | . . . . . . . . . . . . . . . . . . . . . . . . . Total Part Build Rating . | . . . . . . . . . . . . . . . . . . . . . . . . . Part Studies Acquired 3 | . . . 1 . 2 . . . . . . . . . . . . . . . . . . . Parts Repaired . | . . . . . . . . . . . . . . . . . . . . . . . . . Time . | . . . . . . . . . . . . . . . . . . . . . . . . . Parts Recycled . | . . . . . . . . . . . . . . . . . . . . . . . . . Recycled Matter . | . . . . . . . . . . . . . . . . . . . . . . . . . Retrieved Matter . | . . . . . . . . . . . . . . . . . . . . . . . . . Retrieved Components . | . . . . . . . . . . . . . . . . . . . . . . . . . Parts Scanalyzed . | . . . . . . . . . . . . . . . . . . . . . . . . . Part Schematics Acquired . | . . . . . . . . . . . . . . . . . . . . . . . . . Parts Damaged . | . . . . . . . . . . . . . . . . . . . . . . . . . Bothacking | -11 -10 -10 -8 -8 -8 -8 -7 -7 -7 -7 -6 -6 -6 -5 -5 -4 -4 -4 -4 -3 -3 -2 -2 -1 ------------ Run | Yrd Mat Sub Mat Gar Mat Gar Fac Low Low Zio Pro Fac Gar Fac Gar Fac Gar Fac Gar Res Qua Res Tes Acc Used RIF Installer 7 | . . . . 2 . 1 . . . . . . 1 . 1 . 1 . 1 . . . . . Coupler Efficiency 1 | . . . . . . . . . . . . . . . 1 . . . . . . . . . Hotswap 1 | . . . . . . . 1 . . . . . . . . . . . . . . . . . Command Fork 1 | . . . . . . 1 . . . . . . . . . . . . . . . . . . Threat Obfuscator 1 | . . . . . . . . . . . . . . . . . 1 . . . . . . . Robot Detection 1 | . . . . . . . . . . . . . . . . . . . 1 . . . . . Structural Interface 1 | . . . . 1 . . . . . . . . . . . . . . . . . . . . Autoassimilate 1 | . . . . . . . . . . . . . 1 . . . . . . . . . . . Robots Hacked 40 | . . . . . . 5 . . . . . 4 5 1 2 . 13 . 8 2 . . . . Non-combat 1 | . . . . . . . . . . . . . . . . . . . . 1 . . . . Combat 39 | . . . . . . 5 . . . . . 4 5 1 2 . 13 . 8 1 . . . . Autoassimilated 5 | . . . . . . . . . . . . . . 1 1 . 2 . 1 . . . . . Robot Hacks Applied 37 | . . . . . . 5 . . . . . 4 5 . 1 . 12 . 8 2 . . . . parse_system 3 | . . . . . . . . . . . . . . . . . 1 . 2 . . . . . drop_inventory 1 | . . . . . . . . . . . . . . . . . . . . 1 . . . . amplify_resonance 9 | . . . . . . 1 . . . . . . 2 . . . 2 . 3 1 . . . . disable_weapons 1 | . . . . . . . . . . . . . 1 . . . . . . . . . . . overwrite_iff 6 | . . . . . . . . . . . . 1 1 . 1 . 2 . 1 . . . . . formatsys_high 17 | . . . . . . 4 . . . . . 3 1 . . . 7 . 2 . . . . . Relay Couplers Released 56 | . . . . 3 . 8 3 . . . . . 12 7 11 . 12 . . . . . . . Ejected 4 | . . . . . . . . . . . . . . 4 . . . . . . . . . . Machine Destruction 49 | . . . . 3 . 8 3 . . . . . 12 . 11 . 12 . . . . . . . Programmers 3 | . . . . . . . . . . . . . . 3 . . . . . . . . . . Attached 21 | . . . . . . 3 . . . . . 2 2 1 7 . 5 . . 1 . . . . Fabnet Peak Effective % . | . . . . . . . . . . . . . . . . . . . . . . . . . Robots Rewired 4 | . . . . . . . . . . . . . 3 . 1 . . . . . . . . . Allies Hacked 2 | . . . . . . . . . . . . 2 . . . . . . . . . . . . Hacks Repelled 1 | . . . . . . . . . . . . 1 . . . . . . . . . . . . Allies | -11 -10 -10 -8 -8 -8 -8 -7 -7 -7 -7 -6 -6 -6 -5 -5 -4 -4 -4 -4 -3 -3 -2 -2 -1 -------- Run | Yrd Mat Sub Mat Gar Mat Gar Fac Low Low Zio Pro Fac Gar Fac Gar Fac Gar Fac Gar Res Qua Res Tes Acc Total Allies 61 | . . . . . . 6 1 . . . . 11 5 1 5 . 14 . 6 3 4 5 . . Largest Group 11 | . . . . . . 3 1 1 1 . . 6 3 2 2 . 8 8 11 4 4 3 . . Highest-Rated Group 735 | . . . . . . 48 57 57 57 . . 302 130 70 257 . 544 544 735 269 120 246 . . Highest-Rated Ally 142 | . . . . . . 37 57 57 57 . . 90 46 38 141 . 142 142 142 95 30 82 . . Total Orders . | . . . . . . . . . . . . . . . . . . . . . . . . . Ally Attacks 414 | . . . . . . 38 1 2 2 . . 75 27 21 20 . 45 . 63 77 16 27 . . Total Damage 14288 | . . . . . . 508 37 42 68 . . 3107 762 552 1010 . 1689 . 2766 2765 177 805 . . Kills 97 | . . . . . . 10 . 1 1 . . 23 7 4 3 . 11 . 13 16 . 8 . . Allies Corrupted 1 | . . . . . . . . . . . . . . 1 . . . . . . . . . . Allies Melted 2 | . . . . . . 1 . . . . . . . . . . . . . . . 1 . . X0-1V1 Amusement Gains 348 | . 16 10 15 10 . 30 51 . . 91 . 15 53 . . . . . . . 22 . 5 30 Good Acts 194 | . . 3 6 6 3 19 18 . . 16 1 13 8 3 10 . 7 1 7 17 7 21 8 20 Bad Acts 129 | . . 2 3 2 5 3 4 4 3 9 1 5 10 8 19 2 2 . 1 3 10 16 4 13 Intel | -11 -10 -10 -8 -8 -8 -8 -7 -7 -7 -7 -6 -6 -6 -5 -5 -4 -4 -4 -4 -3 -3 -2 -2 -1 ------- Run | Yrd Mat Sub Mat Gar Mat Gar Fac Low Low Zio Pro Fac Gar Fac Gar Fac Gar Fac Gar Res Qua Res Tes Acc Active Infowar (turns) 3858 | 72 797 . . . . . . . . . . 787 . 292 282 . 4 . . 120 277 329 237 661 Sensors 1317 | . . . . . . . . . . . . . . . . . . . . . 257 162 237 661 Seismic 2348 | 72 797 . . . . . . . . . . 785 . 292 282 . . . . . 120 . . . Machine Analysis 2 | . . . . . . . . . . . . 2 . . . . . . . . . . . . Triangulation 420 | . . . . . . . . . . . . . . . . . . . . . . 329 91 . Cloaking 391 | . . . . . . . . . . . . . . . . . . . . 120 271 . . . Jamming 4 | . . . . . . . . . . . . . . . . . 4 . . . . . . . Robot Analysis Total . | . . . . . . . . . . . . . . . . . . . . . . . . . Derelict Logs Recovered 3 | . . 1 . . . . . . 1 . 1 . . . . . . . . . . . . . Drone Launches . | . . . . . . . . . . . . . . . . . . . . . . . . . Drone Recoveries . | . . . . . . . . . . . . . . . . . . . . . . . . . Exploration | -11 -10 -10 -8 -8 -8 -8 -7 -7 -7 -7 -6 -6 -6 -5 -5 -4 -4 -4 -4 -3 -3 -2 -2 -1 ------------- Run | Yrd Mat Sub Mat Gar Mat Gar Fac Low Low Zio Pro Fac Gar Fac Gar Fac Gar Fac Gar Res Qua Res Tes Acc Turns Passed 25203 | 118 802 853 1293 862 335 1586 2618 336 339 2505 412 1978 1602 768 1966 217 1628 61 1028 1991 279 728 237 661 Spaces Moved 16647 | 77 392 488 745 483 167 827 1771 252 273 1453 242 975 802 315 765 100 869 33 461 1076 520 1603 465 1493 Core 118 | 5 . . . . . . 1 . . . . . . . . . . . . 112 . . . . Treads 4565 | . 359 488 . . . . . . . . . . 340 315 765 100 869 33 461 835 . . . . Legs 609 | . . . . . . . . . . . . 147 462 . . . . . . . . . . . Wheels 7145 | 72 33 . 745 483 167 827 1770 252 273 1453 242 828 . . . . . . . . . . . . Hover 1 | . . . . . . . . . . . . . . . . . . . . 1 . . . . Flight 4209 | . . . . . . . . . . . . . . . . . . . . 128 520 1603 465 1493 Fastest Speed 26 | 50 90 160 85 145 145 145 115 115 115 115 160 125 120 160 152 155 155 155 155 31 28 31 29 26 Average Speed 117 | 88 154 160 126 145 145 150 131 115 115 125 160 154 157 160 183 200 162 155 197 129 29 31 30 29 Slowest Speed 2100 | 100 160 240 145 145 145 160 2100 115 145 160 160 180 210 160 235 235 241 155 238 238 34 115 32 113 Overloaded Moves . | . . . . . . . . . . . . . . . . . . . . . . . . . Propulsion Burnouts . | . . . . . . . . . . . . . . . . . . . . . . . . . Robots Hopped 39 | . . . . . . . . . . . . . . . . . . . . . 3 6 9 21 Potential Cave-ins 2 | . . . . . . . . . . . . . . . . . . . . . 2 . . . Cave-ins Triggered . | . . . . . . . . . . . . . . . . . . . . . . . . . Exploration Rate (%) 49 | 4 74 31 57 59 15 66 73 52 58 89 43 28 97 15 88 2 92 2 44 43 34 49 72 50 Regions Visited 24 Branch Regions 7 Pre-discovered Areas 2 | . . 1 . . . . . . . . 1 . . . . . . . . . . . . . Known Exits Taken 13 | . . 1 1 . 1 . 1 . . . 1 1 . 1 . 1 . 1 . 1 1 1 1 . Unknown Exits Taken 5 | 1 1 . . . . . . 1 1 1 . . . . . . . . . . . . . . Scrap Searched 9 | . . . . . . . . . 3 2 4 . . . . . . . . . . . . . Spaces Dug 37 | . . . . . . . . . . . . 4 . . 1 . . . . 1 3 12 12 4 Terrain Destroyed 996 | . . . 2 2 39 77 61 3 3 292 93 88 86 31 26 2 23 . 19 118 3 12 12 4 Melee 31 | . . . . . . . . . . . . . . . 1 . . . . 1 3 12 10 4 Projectile 319 | . . . 2 2 20 2 29 3 3 6 . 43 20 31 22 2 23 . 19 90 . . 2 . AOE 646 | . . . . . 19 75 32 . . 286 93 45 66 . 3 . . . . 27 . . . . Terrain Rammed . | . . . . . . . . . . . . . . . . . . . . . . . . . Walls Destroyed . | . . . . . . . . . . . . . . . . . . . . . . . . . Machines Disabled . | . . . . . . . . . . . . . . . . . . . . . . . . . Actions | -11 -10 -10 -8 -8 -8 -8 -7 -7 -7 -7 -6 -6 -6 -5 -5 -4 -4 -4 -4 -3 -3 -2 -2 -1 --------- Run | Yrd Mat Sub Mat Gar Mat Gar Fac Low Low Zio Pro Fac Gar Fac Gar Fac Gar Fac Gar Res Qua Res Tes Acc Total 19862 | 102 530 531 972 575 226 1043 1959 274 282 1785 258 1227 1001 465 1110 114 1009 42 538 1363 598 1750 518 1590 Wait 937 | . 62 17 85 22 18 75 82 . . 25 . 60 19 79 125 . 30 9 8 86 42 55 1 37 Move 16563 | 76 391 487 745 482 166 826 1770 251 272 1452 241 975 801 315 764 100 868 33 460 1075 515 1591 447 1460 Hop 25 | . . . . . . . . . . . . . . . . . . . . . 1 5 8 11 Pick Up 231 | 7 14 4 27 6 4 14 19 2 2 22 2 12 16 7 18 2 9 . 10 16 2 11 4 1 Fast Attach 229 | 6 3 1 9 4 1 6 7 2 1 16 . 12 19 2 34 3 12 . 8 18 10 25 14 16 Attach 111 | 1 1 2 6 1 . 6 3 3 1 14 . 14 7 7 17 3 2 . 1 19 . 2 . 1 Detach 78 | . 3 . 1 . . 6 3 2 . 9 . 7 6 1 13 1 8 . 4 6 1 4 1 2 Swap 136 | . 9 1 12 . 6 7 5 1 . 18 1 18 16 1 7 . 16 . 6 6 . 2 . 4 Drop 270 | . 12 4 27 8 9 11 19 1 . 16 3 17 27 2 11 4 18 . 13 7 7 22 22 10 Fire 1107 | 12 31 15 60 43 22 85 50 12 6 210 9 112 80 51 104 1 46 . 28 129 . . 1 . Melee 134 | . . . . . . . . . . . . . . . 15 . . . . 1 20 33 17 48 Ram 2 | . . . . . . . 1 . . 1 . . . . . . . . . . . . . . Kick . | . . . . . . . . . . . . . . . . . . . . . . . . . Crush 4 | . 4 . . . . . . . . . . . . . . . . . . . . . . . Escape Stasis 27 | . . . . 8 . 7 . . . . . . 10 . 2 . . . . . . . . . Rewire 1 | . . . . 1 . . . . . . . . . . . . . . . . . . . . Trap . | . . . . . . . . . . . . . . . . . . . . . . . . . Miscellaneous 7 | . . . . . . . . . . 2 2 . . . . . . . . . . . 3 . Route ------- -11/Scrapyard -10/Materials (discovered 4 exits: [*Mat x2] / [*Min] / *Sub) -10/Subcaves (discovered 4 exits: *Mat x2 / Rec / [*Scr]) -8/Materials (discovered 3 exits: *Fac x2 / Gar) -8/Garrison (discovered 3 exits: *Mat x3) -8/Materials -8/Garrison (discovered 3 exits: *Fac x3) -7/Factory (discovered 4 exits: *Fac x2 / *Low x2) -7/Lower Caves -7/Lower Caves (discovered 2 exits: *Fac / [*Zio]) -7/Zion (discovered 2 exits: Dee / [*Pro]) -6/Proximity Caves -6/Factory (discovered 4 exits: *Fac x3 / Gar) -6/Garrison (discovered 3 exits: *Fac x3) -5/Factory -5/Garrison (discovered 3 exits: *Fac x3) -4/Factory -4/Garrison (discovered 3 exits: *Fac x3) -4/Factory -4/Garrison (discovered 4 exits: *Res x3 / [Fac]) -3/Research (discovered 3 exits: *Res / *Qua x2) -3/Quarantine (discovered 2 exits: *Res / Sec) -2/Research (discovered 4 exits: *Acc x2 / *Tes x2) -2/Testing -1/Access To Epsilon Eridani History --------- Turn | Location | Event 61 | -11/Scrapyard | Discovered new exit (range 15) 119 | -11/Scrapyard | Entered Materials 308 | -10/Materials | Build established: Mutant 511 | -10/Materials | Discovered new exit (range 8) 611 | -10/Materials | Discovered new exit (range 14) 710 | -10/Materials | Discovered new exit (range 9) 907 | -10/Materials | Discovered new exit (range 7) 916 | -10/Materials | Prayed at D.C.S.S. Altar Unit 921 | -10/Materials | Entered Subcaves 922 | -10/Subcaves | Approached by a straggling Scientist 928 | -10/Subcaves | Learned location of Zion (-7) 939 | -10/Subcaves | Energy generation permanently improved by X0-1V1 (+10; -100 max core) 1241 | -10/Subcaves | X0-1V1 sent hostile G-34 Mercenary (x3) 1518 | -10/Subcaves | Shifting Twisted Machinery released Sub. Laser 1652 | -10/Subcaves | Visited Clippyterm 1657 | -10/Subcaves | Identified exit to Recycling 1657 | -10/Subcaves | Identified exit to Materials 1657 | -10/Subcaves | Learned Factory trap positions 1759 | -10/Subcaves | Ambushed by Subdwellers from Twisted Machinery 1774 | -10/Subcaves | Entered Materials 1774 | -8/Materials | Evolved 4 slots: Propulsion x2, Utility x1, Weapon x1 1809 | -8/Materials | Central database locked down 2153 | -8/Materials | X0-1V1 foreshadows a heat wave 2225 | -8/Materials | Discovered new exit (range 12) 2306 | -8/Materials | Ambient heat levels rising (+10) 2364 | -8/Materials | X0-1V1 added 0b10 threat records associated with you (minor) 2472 | -8/Materials | Ambient heat levels rising (+10) 2475 | -8/Materials | Core integrity permanently improved by X0-1V1 (+200) 2485 | -8/Materials | Build established: Tank 2495 | -8/Materials | X0-1V1 activates XOMVISION 2625 | -8/Materials | Ambient heat levels falling (-10) 2772 | -8/Materials | X0-1V1 activates XOMVISION 2850 | -8/Materials | Ambient heat levels falling (-10) 2865 | -8/Materials | Discovered new exit (range 18) 3044 | -8/Materials | Build established: Gunner 3067 | -8/Materials | Identified exit to Garrison 3067 | -8/Materials | Entered Garrison 3201 | -8/Garrison | Triggered checkpoint 3255 | -8/Garrison | Triggered checkpoint 3393 | -8/Garrison | Discovered new exit (range 10) 3423 | -8/Garrison | Triggered checkpoint 3427 | -8/Garrison | Discovered new exit (range 8) 3427 | -8/Garrison | X0-1V1 whisked you away to safety 3451 | -8/Garrison | Build established: Scavenger-Tank 3538 | -8/Garrison | Installed Relay Interface Framework 3579 | -8/Garrison | Garrison Relay disabled 3615 | -8/Garrison | Expanded RIF knowledge: Structural Interface 3751 | -8/Garrison | Discovered new exit (range 55) 3751 | -8/Garrison | Discovered new exit (range 25) 3751 | -8/Garrison | Discovered new exit (range 19) 3887 | -8/Garrison | Build established: Tank 3929 | -8/Garrison | Entered Materials 3940 | -8/Materials | Central database locked down 3979 | -8/Materials | Matter capacity permanently improved by X0-1V1 (+600; -300 max core) 4132 | -8/Materials | Garrison activated, responded to threat 4134 | -8/Materials | X0-1V1 sent hostile B-36 Bruiser (x2) 4253 | -8/Materials | Identified exit to Garrison 4264 | -8/Materials | Entered Garrison 4290 | -8/Garrison | Garrison Relay disabled 4318 | -8/Garrison | Phase Generator disabled 4351 | -8/Garrison | Triggered checkpoint 4359 | -8/Garrison | Weapon slot count temporarily expanded by X0-1V1 (+2) 4421 | -8/Garrison | Discovered new exit (range 40) 4421 | -8/Garrison | Discovered new exit (range 74) 4421 | -8/Garrison | Discovered new exit (range 78) 4674 | -8/Garrison | Triggered checkpoint 4746 | -8/Garrison | Triggered checkpoint 4986 | -8/Garrison | X0-1V1 turns hostiles against one another 4995 | -8/Garrison | Build established: Gunner 5038 | -8/Garrison | Expanded RIF knowledge: Command Fork 5209 | -8/Garrison | X0-1V1 activates XOMVISION 5216 | -8/Garrison | Triggered checkpoint 5298 | -8/Garrison | Build established: Tank 5384 | -8/Garrison | Core integrity restored by X0-1V1 (+91) 5471 | -8/Garrison | Triggered checkpoint 5598 | -8/Garrison | X0-1V1 turns hostiles against one another 5785 | -8/Garrison | Garrison Relay disabled 5850 | -8/Garrison | Entered Factory 5850 | -7/Factory | Evolved 2 slots: Propulsion x1, Utility x1 5851 | -7/Factory | Loaded intel: 113 trap records 5879 | -7/Factory | X0-1V1 released a cloud of subatomizers 5985 | -7/Factory | Identified exit to Factory 5985 | -7/Factory | X0-1V1 revealed exit location to -6/Factory 6168 | -7/Factory | Identified exit to Lower Caves 6180 | -7/Factory | Build established: Bothacker-Gunner 6195 | -7/Factory | X0-1V1 downgraded hostiles (x2) 6203 | -7/Factory | X0-1V1 sent you to a vault 6650 | -7/Factory | First assault squad dispatched 6870 | -7/Factory | X0-1V1 activates XOMVISION 6896 | -7/Factory | Weapon slot count temporarily expanded by X0-1V1 (+4) 6957 | -7/Factory | Lost 4 parts (1p2n1w) 7065 | -7/Factory | Sterilization system engaged 7065 | -7/Factory | Non-combat units ordered to evacuate 7165 | -7/Factory | Combat units ordered to evacuate 7209 | -7/Factory | X0-1V1 activates XOMVISION 7326 | -7/Factory | Cargo convoy interrupted 7365 | -7/Factory | Ambient heat levels rising (+10) 7400 | -7/Factory | Discovered exit to Factory (range 18) 7515 | -7/Factory | Ambient heat levels rising (+10) 7530 | -7/Factory | X0-1V1 sent allied Chaos Knight (x1) 7665 | -7/Factory | Ambient heat levels rising (+10) 7815 | -7/Factory | Ambient heat levels rising (+10) 7965 | -7/Factory | Ambient heat levels rising (+10) 8068 | -7/Factory | X0-1V1 mutated your Weapon slot to Power slot 8115 | -7/Factory | Ambient heat levels rising (+10) 8265 | -7/Factory | Ambient heat levels rising (+10) 8332 | -7/Factory | X0-1V1 added 0b10 threat records associated with you (considerable) 8359 | -7/Factory | Build established: Bothacker-Mutant 8415 | -7/Factory | Ambient heat levels rising (+10) 8468 | -7/Factory | Expanded RIF knowledge: Hotswap 8468 | -7/Factory | Entered Lower Caves 8468 | -7/Lower Caves | Accompanied by 1 ally 8506 | -7/Lower Caves | X0-1V1 sent you into danger 8598 | -7/Lower Caves | Attracted the attention of an 0b10 checkpoint 8644 | -7/Lower Caves | System corruption reached 10% 8705 | -7/Lower Caves | X0-1V1 mutated your Utility slot to Weapon slot 8798 | -7/Lower Caves | Discovered new exit (range 6) 8804 | -7/Lower Caves | Entered another Lower Caves area 8804 | -7/Lower Caves | Accompanied by 1 ally 8813 | -7/Lower Caves | X0-1V1 vaporized surrounding terrain (radius 20) 8831 | -7/Lower Caves | Discovered exit to Factory (range 13) 8883 | -7/Lower Caves | Entered a destroyed Warlord outpost 8987 | -7/Lower Caves | Learned Factory interactive machine intel 9000 | -7/Lower Caves | Build established: Bothacker-Gunner 9133 | -7/Lower Caves | Discovered new exit (range 9) 9143 | -7/Lower Caves | Entered Zion 9211 | -7/Zion | Discovered new exit (range 10) 9303 | -7/Zion | RIF detected upon attempting to enter Zion 9303 | -7/Zion | Attacked by Zionites 9344 | -7/Zion | Spotted XC-6UN(B) 9352 | -7/Zion | Spotted 38-84N(B) 9371 | -7/Zion | Destroyed XC-6UN(B) 9372 | -7/Zion | Destroyed 38-84N(B) 9738 | -7/Zion | Core integrity fell below 50% 9824 | -7/Zion | Found Prototype Device 9824 | -7/Zion | Identified Mobile Refinery Mk. CCLXVII 9848 | -7/Zion | Weapon slot count temporarily expanded by X0-1V1 (+2) 10074 | -7/Zion | Identified exit to Deep Caves 10074 | -7/Zion | X0-1V1 revealed exit location to -7/Deep Caves 10473 | -7/Zion | Found GAL Module 10495 | -7/Zion | X0-1V1 whisked you away to safety 10907 | -7/Zion | X0-1V1 sent hostile L-31 Rogue (x1) 10962 | -7/Zion | X0-1V1 mutated your Weapon slot to Propulsion slot 11088 | -7/Zion | Lost 3 parts (2n1u) 11092 | -7/Zion | Core integrity fell below 20% 11193 | -7/Zion | Build established: Bothacker-Mutant 11648 | -7/Zion | Entered Proximity Caves 11972 | -6/Proximity Caves | X0-1V1 activates XOMVISION 12044 | -6/Proximity Caves | Discovered exit to Factory (range 10) 12060 | -6/Proximity Caves | Entered Factory 12060 | -6/Factory | Evolved 2 slots: Utility x1, Weapon x1 12061 | -6/Factory | Loaded intel: 54 interactive machine locations 12086 | -6/Factory | X0-1V1 sent you to a vault 12136 | -6/Factory | Sage 5a assimilated hostile Y-54 Guardian 12620 | -6/Factory | Spotted B-75 Beast 12646 | -6/Factory | Destroyed B-75 Beast 12870 | -6/Factory | Garrison activated, responded to threat 12888 | -6/Factory | Identified exit to Factory 12888 | -6/Factory | X0-1V1 revealed exit location to -5/Factory 12945 | -6/Factory | X0-1V1 downgraded hostiles (x1) 13000 | -6/Factory | Build established: Bothacker-Gunner 13390 | -6/Factory | Garrison activated, responded to threat 13399 | -6/Factory | Cargo convoy interrupted 13515 | -6/Factory | Garrison activated, responded to threat 13575 | -6/Factory | X0-1V1 revealed exit location to -5/Factory 13647 | -6/Factory | Discovered exit to Factory (range 14) 13679 | -6/Factory | Lost 3 parts (1p1n1u) 13783 | -6/Factory | X0-1V1 redirected Transport squads to designated parking area 13842 | -6/Factory | Lost 5 parts (3n2w) 14038 | -6/Factory | Identified exit to Garrison 14038 | -6/Factory | Entered Garrison 14057 | -6/Garrison | Phase Generator disabled 14122 | -6/Garrison | Spotted B-75 Beast 14153 | -6/Garrison | Destroyed B-75 Beast 14186 | -6/Garrison | Lost 4 parts (2n2w) 14313 | -6/Garrison | Learned Factory security intel 14413 | -6/Garrison | Triggered checkpoint 14432 | -6/Garrison | Garrison Relay disabled 14507 | -6/Garrison | Build established: Bothacker-Tank 14560 | -6/Garrison | Core integrity fell below 50% 14573 | -6/Garrison | Lost 3 parts (2n1w) 14582 | -6/Garrison | Destroyed 7 combat bots 14835 | -6/Garrison | Build established: Bothacker-Gunner 14837 | -6/Garrison | Triggered checkpoint 14864 | -6/Garrison | X0-1V1 sent you into danger 14866 | -6/Garrison | Triggered checkpoint 14980 | -6/Garrison | System corruption reached 10% 14997 | -6/Garrison | X0-1V1 vaporized surrounding terrain (radius 23) 14997 | -6/Garrison | Discovered exit to Factory (range 8) 15145 | -6/Garrison | System corruption reached 30% 15159 | -6/Garrison | X0-1V1 vaporized surrounding terrain (radius 23) 15176 | -6/Garrison | Triggered checkpoint 15192 | -6/Garrison | X0-1V1 rewrote HZ-PMH(g) IFF filter 15234 | -6/Garrison | Build established: Bothacker-Tank 15254 | -6/Garrison | Garrison Relay disabled 15302 | -6/Garrison | Discovered exit to Factory (range 14) 15406 | -6/Garrison | Triggered checkpoint 15485 | -6/Garrison | Discovered exit to Factory (range 14) 15493 | -6/Garrison | X0-1V1 activates XOMVISION 15512 | -6/Garrison | Expanded RIF knowledge: Autoassimilate 15556 | -6/Garrison | Triggered checkpoint 15589 | -6/Garrison | Garrison Relay disabled 15640 | -6/Garrison | Entered Factory 15640 | -5/Factory | Accompanied by 2 allies 15640 | -5/Factory | Evolved 2 slots: Utility x2 15720 | -5/Factory | Imp. Heavy Treads reconfigured into Item Mimic 15740 | -5/Factory | X0-1V1 rewrote K2-DV9(l) IFF filter 15999 | -5/Factory | Spotted B-75 Beast 16295 | -5/Factory | Weapon slot count temporarily expanded by X0-1V1 (+3) 16360 | -5/Factory | Garrison activated, responded to threat 16408 | -5/Factory | Identified exit to Garrison 16408 | -5/Factory | Entered Garrison 16445 | -5/Garrison | Garrison Relay disabled 16474 | -5/Garrison | Triggered checkpoint 16492 | -5/Garrison | Expanded RIF knowledge: Coupler Efficiency 16669 | -5/Garrison | Triggered checkpoint 16727 | -5/Garrison | System corruption reached 10% 16760 | -5/Garrison | Lost 4 parts (4u) 16797 | -5/Garrison | Hvy. Siege Treads reconfigured into Item Mimic 16858 | -5/Garrison | X0-1V1 activates XOMVISION 16875 | -5/Garrison | Lost 4 parts (1n1u2w) 16875 | -5/Garrison | System corruption reached 30% 16935 | -5/Garrison | Garrison Relay disabled 16995 | -5/Garrison | X0-1V1 mutated your Propulsion slot to Weapon slot 17032 | -5/Garrison | Triggered checkpoint 17092 | -5/Garrison | Discovered new exit (range 14) 17112 | -5/Garrison | Found Gamma Bomb Array 17236 | -5/Garrison | Lost 3 parts (3w) 17382 | -5/Garrison | Identified exit to Factory 17382 | -5/Garrison | X0-1V1 revealed exit location to -4/Factory 17475 | -5/Garrison | Spotted B-90 Cyclops 17475 | -5/Garrison | Spotted B-75 Beast 17475 | -5/Garrison | X0-1V1 sent you into danger 17482 | -5/Garrison | X0-1V1 turns hostiles against one another 17483 | -5/Garrison | Rewired B-86 Titan 17485 | -5/Garrison | Allies destroyed B-75 Beast 17517 | -5/Garrison | X0-1V1 downgraded hostiles (x1) 17523 | -5/Garrison | Spotted B-86 Titan 17576 | -5/Garrison | Weapon slot count temporarily expanded by X0-1V1 (+4) 17581 | -5/Garrison | Destroyed B-86 Titan 17590 | -5/Garrison | X0-1V1 activates XOMVISION 17606 | -5/Garrison | Lost 5 parts (1p3n1u) 17643 | -5/Garrison | Discovered exit to Factory (range 14) 17865 | -5/Garrison | Garrison Relay disabled 18044 | -5/Garrison | X0-1V1 mutated your Weapon slot to Propulsion slot 18118 | -5/Garrison | Triggered checkpoint 18173 | -5/Garrison | Build established: Botlord-Executioner 18227 | -5/Garrison | X0-1V1 mutated your Propulsion slot to Weapon slot 18269 | -5/Garrison | Spotted B-75 Beast 18274 | -5/Garrison | Destroyed B-75 Beast 18374 | -5/Garrison | Entered Factory 18374 | -4/Factory | Evolved 2 slots: Propulsion x1, Utility x1 18591 | -4/Factory | Identified exit to Garrison 18591 | -4/Factory | Entered Garrison 18782 | -4/Garrison | Build established: Bothacker-Tank 18787 | -4/Garrison | Spotted B-86 Titan 18787 | -4/Garrison | X0-1V1 sent you into danger 18790 | -4/Garrison | Triggered checkpoint 18793 | -4/Garrison | Triggered checkpoint 18799 | -4/Garrison | Destroyed B-86 Titan 18845 | -4/Garrison | System corruption reached 10% 18857 | -4/Garrison | Triggered checkpoint 18878 | -4/Garrison | Heavy support dispatched to Factory 18927 | -4/Garrison | Heavy support dispatched to Factory 18932 | -4/Garrison | Garrison Relay disabled 18959 | -4/Garrison | Triggered checkpoint 19009 | -4/Garrison | H-XX Assembler disabled 19165 | -4/Garrison | Triggered checkpoint 19211 | -4/Garrison | Triggered checkpoint 19259 | -4/Garrison | Discovered new exit (range 10) 19310 | -4/Garrison | Triggered checkpoint 19321 | -4/Garrison | Garrison Relay disabled 19359 | -4/Garrison | Discovered new exit (range 88) 19359 | -4/Garrison | Discovered new exit (range 87) 19359 | -4/Garrison | Discovered new exit (range 35) 19451 | -4/Garrison | X0-1V1 destroyed Phase Generator 19451 | -4/Garrison | Phase Generator disabled 19624 | -4/Garrison | Build established: Botlord-Tank 19680 | -4/Garrison | Expanded RIF knowledge: Threat Obfuscation 19681 | -4/Garrison | Lost 3 allies 19689 | -4/Garrison | Triggered checkpoint 19902 | -4/Garrison | X0-1V1 activates XOMVISION 20119 | -4/Garrison | Triggered checkpoint 20127 | -4/Garrison | Found embedded Infiltrators 20145 | -4/Garrison | Garrison Relay disabled 20219 | -4/Garrison | Entered Factory 20219 | -4/Factory | Accompanied by 8 allies 20271 | -4/Factory | Identified exit to Garrison 20280 | -4/Factory | Entered Garrison 20280 | -4/Garrison | Accompanied by 8 allies 20299 | -4/Garrison | Discovered new exit (range 89) 20299 | -4/Garrison | Discovered new exit (range 47) 20299 | -4/Garrison | Discovered new exit (range 65) 20299 | -4/Garrison | Discovered new exit (range 74) 20312 | -4/Garrison | Found embedded Infiltrators 20344 | -4/Garrison | X0-1V1 destroyed Phase Generator 20344 | -4/Garrison | Phase Generator disabled 20383 | -4/Garrison | Expanded RIF knowledge: Robot Detection 20562 | -4/Garrison | Triggered checkpoint 20656 | -4/Garrison | Triggered checkpoint 20703 | -4/Garrison | Lost 9 allies 20714 | -4/Garrison | Triggered checkpoint 20732 | -4/Garrison | X0-1V1 mutated your Propulsion slot to Weapon slot 20763 | -4/Garrison | Core integrity restored by X0-1V1 (+180) 20840 | -4/Garrison | Triggered checkpoint 21308 | -4/Garrison | Entered Research 21308 | -3/Research | Accompanied by 4 allies 21308 | -3/Research | Evolved 2 slots: Propulsion x1, Utility x1 21383 | -3/Research | Build established: Bothacker-Tank 21513 | -3/Research | Garrison activated, responded to threat 21566 | -3/Research | Lost 4 allies 21808 | -3/Research | Discovered new exit (range 4) 21829 | -3/Research | X0-1V1 activates XOMVISION 21908 | -3/Research | Discovered new exit (range 6) 22058 | -3/Research | First assault squad dispatched 22100 | -3/Research | X0-1V1 sent you to a vault 22225 | -3/Research | X0-1V1 mutated your Weapon slot to Propulsion slot 22299 | -3/Research | X0-1V1 activates XOMVISION 22404 | -3/Research | Build established: Hauler-Tank 22594 | -3/Research | Identified exit to Quarantine 22594 | -3/Research | X0-1V1 revealed exit location to -3/Quarantine 22678 | -3/Research | System corruption reached 10% 22711 | -3/Research | Lost 3 parts (2u1w) 22725 | -3/Research | Garrison activated, responded to threat 22780 | -3/Research | Lost 3 parts (1p1u1w) 22833 | -3/Research | Weapon slot count temporarily expanded by X0-1V1 (+2) 22909 | -3/Research | Lost 4 parts (2n2w) 22944 | -3/Research | Destroyed 14 combat bots 22965 | -3/Research | X0-1V1 whisked you away to safety 22991 | -3/Research | Lost 4 parts (2p1u1w) 23170 | -3/Research | Released all parts (8) 23207 | -3/Research | X0-1V1 activates XOMVISION 23248 | -3/Research | Spotted B-86 Titan 23291 | -3/Research | Found Gamma Bomb Array 23298 | -3/Research | Core integrity restored by X0-1V1 (+264) 23299 | -3/Research | Entered Quarantine 23312 | -3/Quarantine | Found Alien Slashing Weapon 23312 | -3/Quarantine | Identified Sigix Broadsword 23324 | -3/Quarantine | X0-1V1 sent you to a vault 23342 | -3/Quarantine | Discovered new exit (range 5) 23347 | -3/Quarantine | X0-1V1 enhanced Transport squad support 23352 | -3/Quarantine | X0-1V1 sent you into danger 23385 | -3/Quarantine | Found Alien Artifact 23400 | -3/Quarantine | Cryocooling Duct disabled 23404 | -3/Quarantine | X0-1V1 announced a LAN party 23415 | -3/Quarantine | Ambient heat levels rising (+20) 23415 | -3/Quarantine | Non-combat units ordered to evacuate 23434 | -3/Quarantine | Identified exit to Section 7 23434 | -3/Quarantine | X0-1V1 revealed exit location to -3/Section 7 23468 | -3/Quarantine | Found Alien Impact Weapon 23468 | -3/Quarantine | Identified Core Stripper 23493 | -3/Quarantine | X0-1V1 rewrote Plague 8b IFF filter 23510 | -3/Quarantine | Build established: Sprinter 23529 | -3/Quarantine | X0-1V1 vaporized surrounding terrain (radius 16) 23529 | -3/Quarantine | Cryocooling Duct disabled 23544 | -3/Quarantine | Ambient heat levels rising (+20) 23544 | -3/Quarantine | Combat units ordered to evacuate 23575 | -3/Quarantine | Weapon slot count temporarily expanded by X0-1V1 (+1) 23578 | -3/Quarantine | Identified exit to Research 23578 | -3/Quarantine | Entered Research 23578 | -2/Research | Evolved 2 slots: Propulsion x1, Utility x1 23636 | -2/Research | Lost 7 parts (1p2n3u1w) 23732 | -2/Research | Identified exit to Access 23732 | -2/Research | X0-1V1 revealed exit location to -1/Access 23747 | -2/Research | X0-1V1 activates XOMVISION 23764 | -2/Research | X0-1V1 added 0b10 threat records associated with you (minor) 23775 | -2/Research | Forcibly received Sfc. Transmogifier from X0-1V1 23813 | -2/Research | X0-1V1 activates XOMVISION 23879 | -2/Research | X0-1V1 sent you to a vault 23888 | -2/Research | Discovered exit to Access (range 13) 23955 | -2/Research | X0-1V1 added 0b10 threat records associated with you (minor) 24078 | -2/Research | First assault squad dispatched 24086 | -2/Research | Spotted B-90 Cyclops 24118 | -2/Research | Build established: Hacker-Sprinter 24153 | -2/Research | X0-1V1 whisked you away to safety 24189 | -2/Research | X0-1V1 enhanced Transport squad support 24191 | -2/Research | Identified exit to Testing 24192 | -2/Research | X0-1V1 sent you into danger 24193 | -2/Research | X0-1V1 sent allied Mutant (x2) 24200 | -2/Research | Spotted B-90 Cyclops 24205 | -2/Research | X0-1V1 upgraded hostiles (x1) 24205 | -2/Research | Spotted B-99 Colossus 24212 | -2/Research | System corruption reached 10% 24243 | -2/Research | X0-1V1 activates XOMVISION 24254 | -2/Research | X0-1V1 sent hostile Thug (x2) 24295 | -2/Research | X0-1V1 redirected Transport squads to designated parking area 24306 | -2/Research | Entered Testing 24317 | -2/Testing | X0-1V1 sent hostile H-77 Assassin (x2) 24329 | -2/Testing | X0-1V1 announced a LAN party 24347 | -2/Testing | Found Prototype Device 24347 | -2/Testing | Identified Exp. Thermal Shield 24369 | -2/Testing | X0-1V1 activates XOMVISION 24375 | -2/Testing | Found Prototype Protection 24375 | -2/Testing | Identified SHELL Armor 24377 | -2/Testing | Found Prototype Protection 24377 | -2/Testing | Identified Hvy. Regenerative Plating 24380 | -2/Testing | Found Hvy. Regenerative Plating 24382 | -2/Testing | Found Prototype Protection 24382 | -2/Testing | Identified Lgt. Regenerative Plating 24446 | -2/Testing | Found Prototype Ballistic Gun 24446 | -2/Testing | Identified Hyp. Multirail 24470 | -2/Testing | X0-1V1 redirected Transport squads to designated parking area 24478 | -2/Testing | X0-1V1 revealed exit location to -1/Access 24494 | -2/Testing | Build established: Sprinter 24543 | -2/Testing | Entered Access 24543 | -1/Access | Evolved 2 slots: Utility x2 24565 | -1/Access | X0-1V1 destroyed Energy Cycler 24565 | -1/Access | Energy Cycler disabled 24596 | -1/Access | Found Unknown Device 24596 | -1/Access | Identified Launcher Loader 24671 | -1/Access | Sensors blinded by X0-1V1 24688 | -1/Access | X0-1V1 redirected Transport squads to designated parking area 24744 | -1/Access | Spotted B-99 Colossus 24756 | -1/Access | X0-1V1 vaporized surrounding terrain (radius 16) 24760 | -1/Access | X0-1V1 downgraded hostiles (x1) 24820 | -1/Access | X0-1V1 mutated your Weapon slot to Propulsion slot 24867 | -1/Access | Weapon slot count temporarily expanded by X0-1V1 (+1) 24894 | -1/Access | X0-1V1 sent you into danger 24917 | -1/Access | X0-1V1 downgraded hostiles (x4) 24920 | -1/Access | Spotted B-99 Colossus 25019 | -1/Access | Identified exit to Surface 25019 | -1/Access | X0-1V1 revealed exit location to -0/Surface 25043 | -1/Access | Search patrols dispatched 25103 | -1/Access | X0-1V1 sent you to a vault 25111 | -1/Access | Found Prototype Processor 25111 | -1/Access | Identified Exp. Armor Integrity Analyzer 25114 | -1/Access | Found Alien Artifact 25114 | -1/Access | Identified Terrabomb 25114 | -1/Access | Used Terrabomb 25204 | *** | Escaped! Last Messages --------------- 25164_ K-01 Serf collects debris. 25166_ System corrupted: Heat flow error (+137). 25167_ K-01 Serf collects debris. 25170_ X0-1V1 makes important surrounding features appear closer to you (+2 sight range). 25171_ K-01 Serf collects debris. 25171_ Connecting with Terminal... 25174_ Terminal disabled. 25175_ K-01 Serf collects debris. 25175_ Destroyed Imp. Antigrav System. 25178_ K-01 Serf collects debris. 25181_ Destroyed Adv. Heat Sink. 25181_ P-80 Master destroyed. 25181_ K-01 Serf collects debris. 25183_ R-10 Processor collects Unknown Leg. 25184_ K-01 Serf collects debris. 25186_ R-10 Processor collects Lgt. Quantum Reactor. 25188_ K-01 Serf collects debris. 25202_ X0-1V1: "I find this area lacking in decorations." P-80 Master shuts down. Map ----- +----------------------------------------------------+ | ??????????? ? ??"""" #??????????#"""""""" | | ??????????? ?? """"" #?????????## """"T"" | | ??????????? ? """"" #?????????# | | ??????????# ? """"" ########### | | ??????????# # != """"" + + | | ??????????# # =! ########### | | ??????????# # =! #?????????# | | ??????????# #??###########+###?????????# | | ??????????# ###########??# #???????????# | | ??????????# # """"" #### #???????????# | | ??????????# # ""R"" + #???????????# | | ???????#### # " " ######???????????########## | | ???????? #g g #?????????????????????????? | | ??????????# # g #?????????????????????????? | | ??????????# + gg #?????????????????????????? | | ??????????# # = #?????????????????????????? | | #?????????#R # #?????????????????????????? | | ?????????# ###########?????????????????????????? | | ########?# n#?????###???????????????????????????? | | # #?# p####### ##########??????????????????? | | # #?# p"""T "" "??????????????????? | | # #?# *"""[ "" "????BB????????????? | | # #?#=%!p%| "????BB????????????? | | # #?# %!!k "?????????????????? | | # #?# ! "" "????????????????? | | # #?#R @" "???????????????? | | # #?# "????????????????""" | | # #?# "????BB??????????Y"" | | # #?# "????BB?????????? | | +# #?# t "???????????????? | | # #?# ####### ##########????????????????? | | +!=! #?# #?????###???????????????????? ???? | | ##|!%! #?# #?????????#?????????????????? ?? | | ###+####### ##########Y####???##???###### ? | | ]=!%% # ## #???# ? ## """ | | !! # ## #???# ## """ | | # ## """ #???# ## " | | """"" # ## """ #???# ! # | | """"" # ## R" #???# """ # | | """"" # ## """ #???# "Y # = | | """"" # ## !!! "" #???# """ # | | """"" # ## !!! #???# # | | """"" + ## !! #????? ??# | | # ## #?????##+##### | | # ## ####### | | ########### ## / | | ?????????# ###+##/############# #### | | ?????????# #??#########+##### | | ?????????# " ####????????# # | | ?????????# ##### #???????????# # | +----------------------------------------------------+ Best States ------------- Heat Dissipation 105 Energy Generation 79 Energy Capacity 1900 Matter Stores 1501 Matter Capacity 1600 Sight Range 22 Robot Scan Range 16 Terrain Scan Density 10 Cloak Strength 2 Armor Coverage 900 Resistance: KI 30 Resistance: TH 30 Propulsion Shielding 66 Point Defense Rating 240 Phase Shifting 15 Evasion (%) 76 Targeting Accuracy 8 Melee Accuracy 6 Target Analysis 8 Core Analysis 6 Armor Integrity Analysis 50 Recoil Reduction 6 Salvage Targeting 5 Offensive Hacking 14 Defensive Hacking 14 Relay Coupler Types 4 Relay Coupler Value 315 Item Schematics ----------------- Exp. Shock Absorption System | -2/Testing | Archive Robot Schematics ------------------ A-02 Transporter | -2/Testing | Archive Fabricated ------------ Nothing Repaired ---------- Nothing Studied --------- Com. Wheel | -8/Materials | Hacked Flak Cannon | -8/Materials | Hacked Imp. Ion Engine | -8/Materials | Hacked Alien Tech Used ----------------- Sigix Broadsword Core Stripper Terrabomb Achievements -------------- None Challenges ------------ None Game ------ Seed TerrainExperimentalNanovents Manual? 0 Play Time 04:46:41 Cumulative 283.7 hours Start 2026.07.15 @ 00:56:45 End 2026.07.15 @ 17:28:19 Sessions 3 Manual Loads 0 Difficulty Rogue Special Mode None Game No. 132 Rogue 132 Adventurer 0 Explorer 0 Win Type 0 Total 18 Types 14/1/1/1/0/0/0/0/0/1 Lore% 77 Gallery% 74 Achievement% 72 Wizard Run 0 Options --------- Layout 0 ASCII 0 Keyboard 1 Movement Arrows Keybinds 0 Fullscreen 2 Font 18/SmallcapsGlow Map View 76x50 Zoom Use 0% Tactical HUD 1 Map Filters NONE Filters NONE Steam 1 RUN: c6594140-76ef-4a08-ae62-4b1b88adc0c3